bitfinex/quotes_SOLUSD_20220117
["timestamp","ask_amount","ask_price","bid_price","bid_amount"]
[1642377601096,1.92381003,148.03,147.97,114.9331]
[1642377603122,1.92381003,148.03,147.97,120.9331]
[1642377609029,1.92381003,148.07,147.97,120.9331]
[1642377609628,1.92381003,148.07,148.02,1.95403606]
[1642377610030,1.92381003,148.07,148.02,2.20403606]
[1642377610529,1.92381003,148.07,148.02,1.95403606]
[1642377610728,50.35645982,148.1,148.02,1.95403606]
[1642377610929,46.51663928,148.1,148.02,1.95403606]
[1642377611934,46.51663928,148.1,148.02,2.20403606]
[1642377612233,46.51663928,148.1,148.02,1.95403606]
[1642377613333,46.51663928,148.1,148.02,2.20403606]
[1642377613834,10.1332,148.11,148.02,2.20403606]
[1642377614633,10.1332,148.11,148.02,1.22407407]
[1642377614834,36.15909242,148.1,148.02,1.22407407]
[1642377615036,36.15909242,148.1,148.06,0.97996199]
[1642377615235,36.15909242,148.1,148.08,0.97407407]
[1642377615438,3.03219997,148.09,148.08,0.97407407]
[1642377619841,10.1322,148.12,148.08,4.00407407]
[1642377620240,10.1322,148.12,148.1,0.97996199]
[1642377620446,49.2551736,148.15,148.1,0.97996199]
[1642377620740,10.1307,148.14,148.11,0.97407407]
[1642377621539,50.31973019,148.15,148.11,0.97407407]
[1642377622142,1.06455659,148.15,148.11,0.97407407]
[1642377622743,460.47691271,148.2,148.11,0.97407407]
[1642377623142,48.73062661,148.19,148.11,0.97407407]
[1642377624345,26.67217061,148.2,148.11,0.97407407]
[1642377624542,36.79907061,148.2,148.11,0.97407407]
[1642377624746,23.1447,148.2,148.11,0.97407407]
[1642377625144,1.91281908,148.19,148.11,0.97407407]
[1642377625343,1.91281908,148.19,148.11,23.59107407]
[1642377625543,1.91281908,148.19,148.15,0.97996199]
[1642377625744,1.91281908,148.19,148.16,40.92952831]
[1642377626043,3.03219997,148.18,148.17,0.97407407]
[1642377627845,1.91281908,148.19,148.17,4.00407407]
[1642377628245,3.82563816,148.22,148.18,35.0]
[1642377628445,3.82563816,148.22,148.18,35.25]
[1642377628844,3.82563816,148.22,148.19,40.54176794]
[1642377629046,3.82563816,148.22,148.2,3.03]
[1642377629446,3.82563816,148.22,148.2,3.28]
[1642377630950,3.82563816,148.22,148.21,0.97996199]
[1642377631151,3.82563816,148.22,148.21,1.95403606]
[1642377631348,3.82563816,148.22,148.21,2.20403606]
[1642377631548,5.73845724,148.25,148.21,2.20403606]
[1642377631748,5.73845724,148.25,148.22,44.89858919]
[1642377631949,3.03219997,148.24,148.22,45.14858919]
[1642377632351,5.73845724,148.25,148.22,45.14858919]
[1642377633449,3.03219997,148.24,148.22,45.14858919]
[1642377634251,3.03219997,148.24,148.23,3.03]
[1642377634451,5.73845724,148.25,148.23,0.25]
[1642377634652,3.03219997,148.24,148.23,0.25]
[1642377635651,3.03219997,148.24,148.22,45.14858919]
[1642377636051,5.73845724,148.25,148.23,3.03]
[1642377636252,5.73845724,148.25,148.23,4.00996199]
[1642377636450,5.73845724,148.25,148.24,0.97407407]
[1642377640553,8.77065721,148.25,148.24,0.97407407]
[1642377640753,5.73845724,148.25,148.24,0.97407407]
[1642377641554,5.73845724,148.25,148.24,4.98403606]
[1642377641754,5.73845724,148.25,148.24,5.23403606]
[1642377643257,5.71834875,148.25,148.24,5.23403606]
[1642377643857,1.44848702,148.29,148.24,5.23403606]
[1642377644287,1.44848702,148.29,148.24,4.25996199]
[1642377644457,1.44848702,148.29,148.26,0.97407407]
[1642377644658,1.44848702,148.29,148.26,38.91661626]
[1642377644857,1.44848702,148.29,148.26,39.16661626]
[1642377645359,3.03219997,148.28,148.26,0.97407407]
[1642377646561,76.0,148.27,148.15,47.7588]
[1642377646761,76.0,148.27,148.26,0.97996199]
[1642377646962,79.28219997,148.27,148.26,0.97996199]
[1642377647565,3.28219997,148.27,148.22,48.44980815]
[1642377647864,9.78,148.28,148.22,48.44980815]
[1642377648267,9.78,148.28,148.22,48.69980815]
[1642377648465,0.97996198,148.24,148.22,48.69980815]
[1642377648666,0.97996198,148.24,148.23,3.03]
[1642377649067,0.97996198,148.24,148.23,3.28]
[1642377649868,0.97996198,148.24,148.23,0.25]
[1642377649869,4.01216195,148.24,148.23,0.25]
[1642377650368,0.97996198,148.24,148.23,3.03]
[1642377650571,0.97996198,148.24,148.23,3.28]
[1642377651171,0.97996198,148.24,148.23,3.03]
[1642377651571,4.01216195,148.24,148.22,48.44980815]
[1642377652969,4.01216195,148.24,148.22,48.69980815]
[1642377653170,0.97996198,148.24,148.23,3.03]
[1642377653373,0.97996198,148.24,148.23,3.28]
[1642377653570,0.97996198,148.24,148.23,0.25]
[1642377653771,4.01216195,148.24,148.23,0.25]
[1642377654872,4.01216195,148.24,148.22,48.69980815]
[1642377656675,4.01216195,148.24,148.23,3.03]
[1642377656874,0.97996198,148.24,148.23,0.25]
[1642377657475,4.01216195,148.24,148.23,0.25]
[1642377658382,4.01216195,148.24,148.22,48.69980815]
[1642377658780,0.97996198,148.24,148.23,3.03]
[1642377658980,0.97996198,148.24,148.23,3.28]
[1642377660715,4.01216195,148.24,148.23,0.25]
[1642377660923,4.01216195,148.24,148.17,24.967]
[1642377661714,0.97996198,148.24,148.17,24.967]
[1642377662517,0.97996198,148.24,148.18,40.6655795]
[1642377662816,0.97996198,148.24,148.19,24.3412]
[1642377663216,0.97996198,148.24,148.19,24.5912]
[1642377667825,46.27739676,148.24,148.19,24.3412]
[1642377668024,46.27739676,148.24,148.18,40.6655795]
[1642377668526,46.27739676,148.24,148.15,22.8562]
[1642377668725,46.27739676,148.24,148.16,22.7317]
[1642377669325,56.40119676,148.24,148.16,0.25]
[1642377669525,56.40119676,148.24,148.14,46.57889004]
[1642377671033,0.97996198,148.24,148.14,46.57889004]
[1642377671629,0.97996198,148.24,148.15,22.7353]
[1642377672027,51.40438299,148.23,148.15,22.7353]
[1642377672226,58.00138299,148.23,148.15,22.9853]
[1642377672529,58.00138299,148.23,148.08,9.78]
[1642377672530,67.55,148.22,148.08,9.78]
[1642377672731,9.78,148.21,148.08,9.78]
[1642377673027,9.78,148.21,148.05,70.95744776]
[1642377673028,33.7663,148.19,148.05,70.95744776]
[1642377673227,43.32249486,148.17,148.05,70.95744776]
[1642377673629,48.94232576,148.13,148.05,70.95744776]
[1642377673826,54.85332576,148.13,148.05,70.95744776]
[1642377674230,9.78,148.18,148.05,70.95744776]
[1642377674427,9.78,148.2,148.05,80.73744776]
[1642377674828,19.9066,148.2,148.05,80.73744776]
[1642377675229,35.10199716,148.19,148.05,80.73744776]
[1642377675431,35.10199716,148.19,148.05,86.73744776]
[1642377675634,33.7672,148.18,148.05,86.73744776]
[1642377675833,33.7672,148.18,148.05,86.98744776]
[1642377676030,38.94591081,148.19,148.05,86.98744776]
[1642377676629,3.84391365,148.19,148.05,86.98744776]
[1642377677030,9.78,148.2,148.05,86.98744776]
[1642377677434,10.1279,148.18,148.05,97.11564776]
[1642377677832,47.30247513,148.17,148.05,97.11564776]
[1642377680034,10.1279,148.18,148.05,97.11564776]
[1642377681036,48.40331777,148.17,148.05,97.11564776]
[1642377684143,48.40331777,148.17,148.05,96.86564776]
[1642377685565,48.40331777,148.17,148.05,97.11564776]
[1642377687571,58.53191777,148.17,148.05,24.7978]
[1642377687776,63.90991777,148.17,148.05,24.7978]
[1642377687973,67.55,148.16,148.05,24.7978]
[1642377688179,9.78,148.15,148.02,24.1625]
[1642377688372,67.55,148.14,148.03,23.7227]
[1642377688572,46.87878091,148.13,148.02,24.1625]
[1642377688774,66.79158091,148.13,148.02,24.1625]
[1642377688977,73.50058091,148.13,147.98,179.0506]
[1642377689373,73.50058091,148.13,147.98,84.9506]
[1642377689674,73.50058091,148.13,147.99,36.41377861]
[1642377689874,73.50058091,148.13,147.99,59.99967861]
[1642377690478,73.50058091,148.13,147.99,60.24967861]
[1642377690875,66.79158091,148.13,147.99,60.24967861]
[1642377691474,1.70077588,148.12,147.95,22.7612]
[1642377691677,10.1383,148.07,147.92,103.88]
[1642377691886,26.5943,148.07,147.92,9.78]
[1642377692077,69.25077588,148.06,147.92,9.78]
[1642377692276,9.78,148.05,147.92,9.78]
[1642377692478,46.878909,148.04,147.93,44.84611431]
[1642377692678,46.878909,148.04,147.9,418.91448662]
[1642377692877,10.1397,148.02,147.9,428.69448662]
[1642377693680,44.31428511,148.01,147.91,39.00829979]
[1642377694079,34.89396685,147.97,147.91,39.00829979]
[1642377694381,34.89396685,147.97,147.88,58.40140862]
[1642377694578,34.89396685,147.97,147.88,64.40140862]
[1642377695179,34.89396685,147.97,147.89,41.52281307]
[1642377695386,45.03616685,147.97,147.89,41.52281307]
[1642377695779,45.03616685,147.97,147.88,48.62140862]
[1642377695980,67.55,147.96,147.88,48.62140862]
[1642377696179,67.55,147.96,147.88,0.26430862]
[1642377696581,77.63577588,147.96,147.88,0.26430862]
[1642377696992,75.935,147.96,147.88,0.26430862]
[1642377697184,10.1451,147.94,147.88,0.26430862]
[1642377697383,51.12917398,147.94,147.88,0.26430862]
[1642377699589,51.37917398,147.94,147.88,0.26430862]
[1642377701888,51.12917398,147.94,147.88,0.26430862]
[1642377703192,51.37917398,147.94,147.88,0.26430862]
[1642377703592,67.55,147.93,147.88,0.26430862]
[1642377703793,77.33,147.93,147.88,0.26430862]
[1642377703995,43.0867859,147.91,147.88,0.26430862]
[1642377704194,3.03219997,147.9,147.88,0.26430862]
[1642377705425,13.17969997,147.9,147.88,0.26430862]
[1642377709226,22.95969997,147.9,147.88,0.26430862]
[1642377709627,22.95969997,147.9,147.75,9.78]
[1642377709628,98.0,147.89,147.75,9.78]
[1642377709831,10.1514,147.85,147.73,9.78]
[1642377710227,10.1514,147.85,147.73,15.78]
[1642377710426,10.1514,147.85,147.74,34.9462002]
[1642377710427,44.82534644,147.84,147.74,34.9462002]
[1642377711628,48.13431485,147.81,147.74,34.9462002]
[1642377712632,48.13431485,147.81,147.74,35.1962002]
[1642377713337,48.13431485,147.81,147.74,34.9462002]
[1642377713533,58.28741485,147.81,147.71,47.3452]
[1642377713734,58.28741485,147.81,147.71,53.3452]
[1642377713933,58.28741485,147.81,147.69,9.78]
[1642377714334,58.28741485,147.81,147.68,24.1076]
[1642377714633,9.78,147.8,147.69,37.37441951]
[1642377714833,46.87792267,147.76,147.69,37.37441951]
[1642377716338,46.87792267,147.76,147.68,24.1076]
[1642377716542,57.03462267,147.76,147.67,24.8501]
[1642377716740,57.03462267,147.76,147.62,24.749]
[1642377716940,66.81462267,147.76,147.62,24.749]
[1642377717141,74.15362267,147.76,147.62,24.749]
[1642377717338,67.55,147.75,147.6,584.05495785]
[1642377717548,10.1632,147.71,147.61,48.35273786]
[1642377717737,48.84154012,147.7,147.61,48.35273786]
[1642377717938,48.84154012,147.7,147.6,489.95495785]
[1642377718438,82.71924012,147.7,147.6,489.95495785]
[1642377718740,10.1633,147.68,147.6,489.95495785]
[1642377719040,9.78,147.72,147.6,489.95495785]
[1642377719238,9.78,147.72,147.61,22.8594]
[1642377719644,9.78,147.72,147.62,40.13828926]
[1642377719840,9.78,147.72,147.62,40.38828926]
[1642377720044,42.69960806,147.71,147.62,40.38828926]
[1642377720242,10.1606,147.7,147.62,40.13828926]
[1642377721440,10.1606,147.7,147.59,0.56812517]
[1642377721441,9.78,147.69,147.59,0.56812517]
[1642377721640,10.1643,147.66,147.59,0.56812517]
[1642377722440,10.1643,147.66,147.6,36.66254812]
[1642377723077,10.1643,147.66,147.6,36.91254812]
[1642377725046,10.1622,147.68,147.6,36.91254812]
[1642377725249,75.57264991,147.74,147.6,36.91254812]
[1642377725447,9.78,147.72,147.6,36.91254812]
[1642377726048,55.40985384,147.72,147.6,36.91254812]
[1642377726245,55.40985384,147.72,147.61,23.1792]
[1642377726448,55.40985384,147.72,147.61,23.4292]
[1642377726845,10.1608,147.7,147.61,23.4292]
[1642377730878,37.53537036,147.69,147.61,23.4292]
[1642377732680,10.1608,147.7,147.61,23.4292]
[1642377733681,3.53373389,147.74,147.61,23.4292]
[1642377733880,78.4108,147.92,147.61,23.4292]
[1642377733881,21.25358535,147.79,147.62,78.31055097]
[1642377734284,21.25358535,147.79,147.62,84.56055097]
[1642377734484,21.25358535,147.79,147.63,0.98055097]
[1642377734683,42.29008616,147.78,147.64,50.44637603]
[1642377734982,42.29008616,147.78,147.64,56.69637603]
[1642377735182,42.29008616,147.78,147.64,57.676927]
[1642377735385,10.1566,147.76,147.65,23.4127]
[1642377735590,42.29008616,147.78,147.65,23.4127]
[1642377735787,11.47358535,147.79,147.65,29.6627]
[1642377735983,3.53432976,147.8,147.66,77.33]
[1642377736186,10.0572,147.83,147.66,85.371]
[1642377736381,10.0572,147.83,147.67,0.97883553]
[1642377736582,3.53468907,147.81,147.68,9.78]
[1642377736784,49.4723043,147.8,147.69,39.18868608]
[1642377736982,49.4723043,147.8,147.7,22.5398]
[1642377737182,59.6262043,147.8,147.7,28.1238]
[1642377737384,49.4723043,147.8,147.7,28.3738]
[1642377737785,13.31438519,147.85,147.7,95.9238]
[1642377737984,13.31438519,147.85,147.7,101.9238]
[1642377738395,3.53438519,147.85,147.7,122.83483553]
[1642377738593,490.76430758,147.92,147.7,122.83483553]
[1642377738796,41.96017568,147.91,147.71,0.26]
[1642377738990,41.96017568,147.91,147.72,9.78]
[1642377739188,41.96017568,147.91,147.73,46.85998483]
[1642377739389,41.96017568,147.91,147.74,9.78]
[1642377739793,41.96017568,147.91,147.74,17.00883553]
[1642377740089,41.96017568,147.91,147.76,41.03260796]
[1642377740290,41.96017568,147.91,147.76,124.87560796]
[1642377740491,3.53297103,147.92,147.78,67.55]
[1642377740693,3.38089268,147.95,147.79,9.78]
[1642377740894,532.78778929,148.01,147.8,67.55]
[1642377741095,532.78778929,148.01,147.81,9.78]
[1642377741293,523.00778929,148.01,147.82,23.6083]
[1642377741496,40.1705304,148.0,147.83,52.66107192]
[1642377741695,50.3109304,148.0,147.87,10.1401]
[1642377741892,50.3109304,148.0,147.88,38.36408081]
[1642377742091,40.1705304,148.0,147.88,48.14408081]
[1642377742291,40.1705304,148.0,147.88,54.39408081]
[1642377742493,519.62689661,148.01,147.89,0.97541516]
[1642377742691,10.1007,148.04,147.9,9.78]
[1642377742894,17.04661513,148.07,147.9,89.087]
[1642377743092,13.51679268,148.07,147.91,47.97681516]
[1642377743296,13.51679268,148.07,147.92,9.78]
[1642377743494,45.32618923,148.06,147.92,57.27859426]
[1642377743694,45.32618923,148.06,147.93,0.97541516]
[1642377743894,45.32618923,148.06,147.94,19.9154]
[1642377744195,45.32618923,148.06,147.95,40.59393735]
[1642377744393,45.32618923,148.06,147.95,40.84393735]
[1642377744693,45.32618923,148.06,147.95,0.25]
[1642377744894,1.70077588,148.05,147.95,0.25]
[1642377745104,10.1388,148.02,147.95,0.25]
[1642377745500,40.7595981,148.01,147.95,0.25]
[1642377745695,40.7595981,148.01,147.93,36.79348313]
[1642377745898,40.7595981,148.01,147.93,37.04348313]
[1642377748901,10.1377,148.04,147.93,37.04348313]
[1642377749102,10.1377,148.04,147.93,46.82348313]
[1642377749335,15.0100653,148.09,147.93,46.82348313]
[1642377749501,15.0100653,148.09,147.94,23.8468]
[1642377750001,10.1363,148.06,147.94,30.0968]
[1642377750203,42.03162069,148.05,147.94,30.0968]
[1642377751401,10.1378,148.04,147.94,30.0968]
[1642377751800,10.1378,148.04,147.94,24.0968]
[1642377754307,10.1378,148.04,147.94,23.8468]
[1642377754504,9.78,148.03,147.94,23.8468]
[1642377754704,10.1413,148.0,147.91,23.3678]
[1642377754905,10.1413,148.0,147.86,9.78]
[1642377755305,10.1413,148.0,147.87,47.56992884]
[1642377755508,1.70077588,148.05,147.89,10.1392]
[1642377755706,13.30928942,148.09,147.9,125.7243]
[1642377755906,13.66348942,148.09,147.9,133.00645566]
[1642377756110,10.1342,148.09,147.91,11.94222989]
[1642377756306,47.12220295,148.08,147.92,48.23205228]
[1642377756506,47.12220295,148.08,147.93,34.9166]
[1642377756705,47.12220295,148.08,147.94,9.78]
[1642377756906,1.70077588,148.07,147.96,47.54263158]
[1642377757206,49.27824083,148.04,147.96,47.54263158]
[1642377757408,49.27824083,148.04,147.96,47.79263158]
[1642377761109,33.7917,148.08,147.96,47.79263158]
[1642377761311,1.55799619,148.1,147.96,47.79263158]
[1642377761509,1.55799619,148.1,147.97,9.78]
[1642377762008,1.55799619,148.1,147.97,10.03]
[1642377762208,36.68964424,148.09,147.99,43.01428729]
[1642377762409,46.82394424,148.09,147.99,43.26428729]
[1642377763012,46.82394424,148.09,147.99,0.25]
[1642377763209,114.37394424,148.09,147.99,0.25]
[1642377763609,114.37394424,148.09,147.98,22.8735]
[1642377764009,114.62394424,148.09,147.98,66.58936377]
[1642377764210,46.82394424,148.09,147.98,66.58936377]
[1642377764611,36.68964424,148.09,147.98,67.56306857]
[1642377765013,11.87639017,148.11,147.98,67.56306857]
[1642377765211,11.87639017,148.11,147.99,9.78]
[1642377765414,11.87639017,148.11,147.99,10.03]
[1642377765814,11.87639017,148.11,148.0,22.5721]
[1642377766014,41.96120486,148.1,148.01,36.48029527]
[1642377766211,52.09490486,148.1,148.01,36.48029527]
[1642377766413,52.09490486,148.1,148.01,36.73029527]
[1642377767414,52.09490486,148.1,148.01,36.48029527]
[1642377767911,10.1337,148.1,148.01,36.48029527]
[1642377768114,10.132,148.12,148.01,36.48029527]
[1642377768314,10.132,148.12,148.01,42.76429527]
[1642377768516,1.74359017,148.09,148.01,48.76429527]
[1642377768714,1.74359017,148.09,148.02,0.97200358]
[1642377768915,1.74359017,148.09,148.01,42.73029527]
[1642377769516,47.93876991,148.08,148.01,42.73029527]
[1642377769915,47.93876991,148.08,148.01,36.48029527]
[1642377771118,1.74359017,148.07,148.01,36.48029527]
[1642377771317,1.74359017,148.07,148.01,36.73029527]
[1642377772215,11.87839017,148.08,148.01,36.73029527]
[1642377773116,1.74359017,148.07,148.01,36.73029527]
[1642377773716,48.80107064,148.06,148.01,36.73029527]
[1642377773919,48.80107064,148.06,148.01,0.25]
[1642377774319,48.80107064,148.06,148.0,22.8221]
[1642377774716,1.74359017,148.07,148.0,22.8221]
[1642377775718,1.74359017,148.07,148.01,39.70449549]
[1642377775923,1.74359017,148.07,148.01,39.95449549]
[1642377776520,1.74359017,148.08,148.01,39.95449549]
[1642377777720,1.74359017,148.1,148.01,39.95449549]
[1642377779726,1.74359017,148.1,148.02,77.33]
[1642377779924,1.74359017,148.1,148.02,83.58]
[1642377780129,1.74359017,148.1,148.03,0.97200358]
[1642377780325,1.74359017,148.1,148.04,67.55]
[1642377780528,1.74359017,148.1,148.06,67.55]
[1642377780828,9.9155,148.11,148.06,67.55]
[1642377780829,9.9155,148.11,148.06,77.9272]
[1642377781226,1.74359017,148.12,148.07,43.64830194]
[1642377781426,1.74359017,148.12,148.07,43.89830194]
[1642377781626,1.74359017,148.12,148.07,53.67830194]
[1642377782025,1.74359017,148.12,148.07,60.65030552]
[1642377782224,1.74359017,148.15,148.07,60.65030552]
[1642377782423,1.74359017,148.15,148.09,77.6757]
[1642377782825,1.74359017,148.15,148.09,84.89770358]
[1642377783426,1.74359017,148.15,148.09,94.67770358]
[1642377783833,57.88208331,148.21,148.09,94.67770358]
[1642377783834,1.74359017,148.17,148.09,94.67770358]
[1642377784228,1.74359017,148.17,148.09,93.7057]
[1642377786860,36.35482761,148.16,148.09,15.53]
[1642377787859,1.74359017,148.17,148.09,15.53]
[1642377788262,1.74359017,148.17,148.09,15.78]
[1642377788861,41.30510062,148.17,148.09,15.78]
[1642377789963,41.30510062,148.17,148.09,10.03]
[1642377790163,41.30510062,148.17,148.09,0.25]
[1642377790362,41.30510062,148.17,148.08,24.8418]
[1642377790962,1.74359017,148.17,148.08,24.8418]
[1642377794874,1.99359017,148.17,148.08,24.5918]
[1642377796466,12.12229017,148.17,148.08,24.5918]
[1642377796971,12.12229017,148.17,148.08,24.8418]
[1642377797472,12.12229017,148.17,148.08,0.25]
[1642377797970,12.12229017,148.17,148.07,43.89830194]
[1642377798771,12.12229017,148.17,148.06,24.5512]
[1642377798970,67.55,148.16,148.06,24.5512]
[1642377799173,10.1315,148.13,148.06,24.5512]
[1642377799771,46.32144442,148.12,148.06,46.09734083]
[1642377800872,10.1315,148.13,148.06,46.09734083]
[1642377802577,10.1315,148.13,148.04,23.7777]
[1642377802776,77.9315,148.13,148.04,24.0277]
[1642377802976,10.3815,148.13,148.04,24.0277]
[1642377803576,10.3815,148.13,148.05,37.16293581]
[1642377804578,1.74359017,148.12,148.05,37.16293581]
[1642377804778,10.1324,148.11,148.05,37.16293581]
[1642377804981,10.1324,148.11,148.05,37.41293581]
[1642377806279,10.1324,148.11,148.05,0.25]
[1642377806479,10.1324,148.11,148.04,24.0277]
[1642377806879,10.3824,148.11,148.01,22.8383]
[1642377807281,10.3824,148.11,148.02,44.41098589]
[1642377807579,12.12599017,148.11,148.02,44.41098589]
[1642377807982,48.35962403,148.09,148.02,44.41098589]
[1642377808380,50.1032142,148.09,148.02,44.66098589]
[1642377810585,50.3532142,148.09,148.02,44.66098589]
[1642377811184,50.3532142,148.09,147.98,32.9248]
[1642377811185,50.3532142,148.09,147.98,23.1448]
[1642377811383,61.83399008,148.09,147.94,1.8900011]
[1642377811584,61.83399008,148.09,147.94,11.7778011]
[1642377811887,10.1387,148.04,147.94,11.7778011]
[1642377812083,10.1387,148.04,147.94,9.8878]
[1642377812283,10.1387,148.04,147.95,40.71091849]
[1642377812486,1.74359017,148.06,147.95,40.71091849]
[1642377812888,1.74359017,148.06,147.95,56.49091849]
[1642377813285,1.74359017,148.09,147.96,22.7521]
[1642377813485,1.74359017,148.09,147.97,10.1339]
[1642377813884,1.74359017,148.09,147.97,10.3839]
[1642377814284,1.74359017,148.08,147.97,10.3839]
[1642377814887,1.74359017,148.08,147.98,23.1512]
[1642377815287,1.74359017,148.08,147.98,23.4012]
[1642377819393,1.74359017,148.08,147.99,77.33]
[1642377819793,1.74359017,148.08,147.99,17.00200358]
[1642377820197,1.74359017,148.08,148.0,71.0353513]
[1642377820393,11.87849017,148.08,148.0,71.0353513]
[1642377820619,10.1349,148.08,148.0,71.0353513]
[1642377821518,1.74359017,148.09,148.0,71.0353513]
[1642377821919,1.74359017,148.08,148.0,71.2853513]
[1642377823024,1.74359017,148.1,148.0,71.2853513]
[1642377823222,1.74359017,148.1,148.0,81.0653513]
[1642377827325,1.74359017,148.1,148.0,91.1968513]
[1642377828926,1.74359017,148.09,148.0,91.1968513]
[1642377833329,1.74359017,148.09,148.0,97.1968513]
[1642377833529,1.74359017,148.09,148.01,67.55]
[1642377833731,1.74359017,148.09,148.04,67.55]
[1642377833934,1.74359017,148.09,148.04,67.8]
[1642377834131,1.74359017,148.09,148.05,0.97040778]
[1642377834329,3.38089268,148.12,148.05,0.97040778]
[1642377834330,1.74359017,148.11,148.05,0.97040778]
[1642377834530,1.74359017,148.11,148.06,35.88453213]
[1642377834931,1.74359017,148.11,148.06,37.10493991]
[1642377835332,52.07168965,148.17,148.06,37.10493991]
[1642377835333,1.74359017,148.13,148.06,37.10493991]
[1642377836132,1.74359017,148.13,148.06,59.75523991]
[1642377836336,1.74359017,148.13,148.06,65.75523991]
[1642377836536,1.74359017,148.13,148.06,59.75523991]
[1642377840342,36.76250116,148.12,148.06,64.53483213]
[1642377840649,1.74359017,148.13,148.06,58.53483213]
[1642377841243,1.74359017,148.11,148.06,58.53483213]
[1642377841842,1.74359017,148.11,148.06,58.78483213]
[1642377842244,1.74359017,148.12,148.06,58.78483213]
[1642377843943,1.74359017,148.11,148.06,58.78483213]
[1642377846874,1.74359017,148.12,148.07,67.55]
[1642377847049,7.21954354,148.15,148.07,82.766]
[1642377847249,7.21954354,148.15,148.07,89.016]
[1642377847450,4.354e-05,148.15,148.07,89.016]
[1642377847649,5.64974505,148.18,148.09,56.0]
[1642377847850,3.83843801,148.19,148.09,72.03]
[1642377848049,3.83843801,148.19,148.1,93.26148263]
[1642377848348,3.83843801,148.19,148.1,99.51148263]
[1642377848551,3.83843801,148.19,148.1,108.22748263]
[1642377848948,20.1482,148.23,148.1,108.22748263]
[1642377849348,55.98421413,148.23,148.1,108.22748263]
[1642377849548,10.3682,148.23,148.11,10.1232]
[1642377849750,10.3682,148.23,148.12,23.434]
[1642377849948,10.3682,148.23,148.12,29.684]
[1642377850149,10.3682,148.23,148.12,39.464]
[1642377850551,10.3682,148.23,148.13,35.72748488]
[1642377850950,10.3682,148.23,148.13,35.97748488]
[1642377851551,10.3682,148.23,148.13,46.10028488]
[1642377852654,10.3682,148.23,148.13,45.85028488]
[1642377852853,10.3682,148.23,148.13,35.72748488]
[1642377853455,10.6182,148.23,148.13,35.72748488]
[1642377853854,10.1268,148.2,148.13,35.72748488]
[1642377854256,10.1268,148.2,148.13,41.72748488]
[1642377854653,10.1268,148.2,148.13,35.72748488]
[1642377854853,10.1268,148.2,148.13,41.72748488]
[1642377855661,10.1268,148.2,148.13,6.0]
[1642377855858,10.3768,148.2,148.12,6.0]
[1642377856060,12.07757588,148.2,148.12,6.0]
[1642377856355,12.07757588,148.2,148.1,30.4864]
[1642377856858,12.07757588,148.2,148.11,42.64437996]
[1642377857055,79.62757588,148.2,148.11,42.64437996]
[1642377857256,79.62757588,148.2,148.11,48.89437996]
[1642377857659,12.07757588,148.2,148.11,48.89437996]
[1642377857858,12.07757588,148.2,148.1,24.4864]
[1642377858060,9.78,148.19,148.1,24.4864]
[1642377858268,10.1294,148.17,148.1,24.4864]
[1642377858459,10.1294,148.17,148.07,24.0966]
[1642377858861,41.10143962,148.16,148.08,46.16129942]
[1642377859859,41.10143962,148.16,148.08,46.41129942]
[1642377860459,51.23073962,148.16,148.08,46.41129942]
[1642377861962,51.23073962,148.16,148.07,24.0966]
[1642377862160,51.23073962,148.16,148.04,23.8388]
[1642377862161,59.87773962,148.16,148.04,23.8388]
[1642377862364,71.3585155,148.16,147.99,9.78]
[1642377862562,71.3585155,148.16,148.0,47.417]
[1642377863060,71.3585155,148.16,148.01,39.40078249]
[1642377863762,71.3585155,148.16,148.02,23.9321]
[1642377863961,71.3585155,148.16,148.02,24.1821]
[1642377864362,69.65773962,148.16,148.02,24.1821]
[1642377865464,61.26073962,148.16,148.02,24.1821]
[1642377866363,67.55,148.15,148.02,24.1821]
[1642377866562,9.78,148.15,148.02,24.1821]
[1642377866763,47.86627962,148.13,148.02,24.1821]
[1642377868567,47.86627962,148.13,148.02,34.3121]
[1642377868767,47.86627962,148.13,148.02,24.1821]
[1642377869701,47.86627962,148.13,148.02,91.7321]
[1642377871203,9.78,148.15,148.02,91.7321]
[1642377871401,10.1303,148.15,148.03,9.78]
[1642377871699,9.78,148.19,148.03,9.78]
[1642377871902,10.03,148.19,148.03,16.03]
[1642377872303,54.85061727,148.19,148.04,104.35826727]
[1642377872502,55.44801727,148.19,148.06,10.1274]
[1642377872701,55.44801727,148.19,148.07,46.19287191]